[Event "GrandPrix_29.05"]
[Site "Chess.com"]
[Date "2020.05.29"]
[Round "1"]
[White "Vuk2000"]
[Black "EvgenyPigusov"]
[Result "0-1"]
[WhiteElo "2252"]
[BlackElo "2290"]
[TimeControl "600+2"]
[EndTime "9:18:49 PDT"]
[Termination "EvgenyPigusov won by resignation"]

1. d4 {[%clk 0:10:01.9]} 1... Nf6 {[%clk 0:09:59.4]} 2. Bg5 {[%clk 0:10:02.6]}
2... e6 {[%clk 0:09:59.5]} 3. e4 {[%clk 0:10:03.1]} 3... h6 {[%clk 0:09:59.5]}
4. Bxf6 {[%clk 0:10:04]} 4... Qxf6 {[%clk 0:09:59.5]} 5. c3 {[%clk 0:10:05.1]}
5... d6 {[%clk 0:09:51.4]} 6. Bd3 {[%clk 0:10:05.5]} 6... g6 {[%clk 0:09:48.2]}
7. Ne2 {[%clk 0:10:06.1]} 7... Bg7 {[%clk 0:09:48.5]} 8. O-O {[%clk 0:10:07.1]}
8... Qe7 {[%clk 0:09:41.8]} 9. f4 {[%clk 0:09:50.1]} 9... e5 {[%clk 0:09:32.4]}
10. Nd2 {[%clk 0:09:37.1]} 10... exd4 {[%clk 0:09:14.1]} 11. Nxd4 {[%clk
0:09:29.6]} 11... O-O {[%clk 0:09:08.9]} 12. N2f3 {[%clk 0:09:20.7]} 12... Nd7
{[%clk 0:08:56.8]} 13. Re1 {[%clk 0:09:09.2]} 13... a6 {[%clk 0:08:52]} 14. Qd2
{[%clk 0:09:00.1]} 14... Nc5 {[%clk 0:08:47.7]} 15. Bc2 {[%clk 0:09:00.9]} 15...
Ne6 {[%clk 0:08:38.3]} 16. Re3 {[%clk 0:06:25.7]} 16... Nxf4 {[%clk 0:08:30.4]}
17. Rae1 {[%clk 0:06:21.2]} 17... Be5 {[%clk 0:08:09.6]} 18. Bb3 {[%clk
0:06:06.1]} 18... Kg7 {[%clk 0:08:06.3]} 19. Qf2 {[%clk 0:06:02.6]} 19... Bd7
{[%clk 0:07:47.8]} 20. Nh4 {[%clk 0:05:11.4]} 20... Kh7 {[%clk 0:07:28.4]} 21.
Kh1 {[%clk 0:05:01]} 21... Rac8 {[%clk 0:06:47.2]} 22. Rf3 {[%clk 0:04:59.2]}
22... c5 {[%clk 0:06:33.2]} 23. Ne2 {[%clk 0:04:41.1]} 23... Nxe2 {[%clk
0:06:31.3]} 24. Rxe2 {[%clk 0:04:32.5]} 24... c4 {[%clk 0:06:31.4]} 25. Bc2
{[%clk 0:04:19.7]} 25... Bg4 {[%clk 0:06:31.4]} 26. Rd2 {[%clk 0:04:20]} 26...
Bxf3 {[%clk 0:06:30.6]} 27. Nxf3 {[%clk 0:04:21.9]} 27... b5 {[%clk 0:06:18.9]}
28. Rd5 {[%clk 0:04:16.8]} 28... Kg7 {[%clk 0:05:54.3]} 29. a3 {[%clk
0:04:10.8]} 29... Rb8 {[%clk 0:05:16]} 30. Qd2 {[%clk 0:03:28]} 30... a5 {[%clk
0:04:59.1]} 31. Bd1 {[%clk 0:03:16.4]} 31... Rfc8 {[%clk 0:04:48.9]} 32. a4
{[%clk 0:02:23]} 32... b4 {[%clk 0:04:43]} 33. Rxa5 {[%clk 0:02:17.2]} 33...
bxc3 {[%clk 0:04:33.9]} 34. bxc3 {[%clk 0:02:19.1]} 34... Rb1 {[%clk 0:04:25.5]}
35. Rd5 {[%clk 0:02:19.5]} 35... Rc5 {[%clk 0:04:17.2]} 36. Rxc5 {[%clk
0:01:33.7]} 36... dxc5 {[%clk 0:04:16.9]} 37. Qc2 {[%clk 0:01:34]} 37... Ra1
{[%clk 0:04:04.2]} 38. Kg1 {[%clk 0:01:21.1]} 38... Qd6 {[%clk 0:03:57.5]} 39.
Nxe5 {[%clk 0:01:19.1]} 39... Rxd1+ {[%clk 0:03:52.1]} 0-1

[Event "GrandPrix_29.05"]
[Site "Chess.com"]
[Date "2020.05.29"]
[Round "1"]
[White "TimofeevAr"]
[Black "payto1"]
[Result "1/2-1/2"]
[WhiteElo "2380"]
[BlackElo "2182"]
[TimeControl "600+2"]
[EndTime "9:18:53 PDT"]
[Termination "Game drawn - insufficient material"]

1. c4 {[%clk 0:09:59.1]} 1... e5 {[%clk 0:10:00]} 2. e3 {[%clk 0:09:59.2]} 2...
Nc6 {[%clk 0:10:00.6]} 3. Nc3 {[%clk 0:09:58.7]} 3... g6 {[%clk 0:10:01.1]} 4.
g3 {[%clk 0:09:55.8]} 4... Bg7 {[%clk 0:10:01.9]} 5. Bg2 {[%clk 0:09:56.6]} 5...
d6 {[%clk 0:10:01.6]} 6. Nge2 {[%clk 0:09:56.8]} 6... Nge7 {[%clk 0:09:55.2]} 7.
d3 {[%clk 0:09:50.7]} 7... O-O {[%clk 0:09:53.3]} 8. O-O {[%clk 0:09:50.2]} 8...
Be6 {[%clk 0:09:52.3]} 9. h3 {[%clk 0:09:49.7]} 9... d5 {[%clk 0:09:39.1]} 10.
cxd5 {[%clk 0:09:49.7]} 10... Nxd5 {[%clk 0:09:39.9]} 11. a3 {[%clk 0:09:50.6]}
11... Qd7 {[%clk 0:09:21.8]} 12. Kh2 {[%clk 0:09:48.5]} 12... Rad8 {[%clk
0:09:17.8]} 13. Ne4 {[%clk 0:09:47.3]} 13... Qe7 {[%clk 0:09:11.9]} 14. Qc2
{[%clk 0:09:45.1]} 14... Bc8 {[%clk 0:08:04.5]} 15. N2c3 {[%clk 0:09:34.1]}
15... Nxc3 {[%clk 0:08:01.5]} 16. Nxc3 {[%clk 0:09:28.9]} 16... Be6 {[%clk
0:07:50.7]} 17. b4 {[%clk 0:09:22.2]} 17... a6 {[%clk 0:07:30.1]} 18. Bb2 {[%clk
0:09:20.3]} 18... f5 {[%clk 0:07:22.5]} 19. Ne2 {[%clk 0:09:10.8]} 19... Bd5
{[%clk 0:07:11.8]} 20. e4 {[%clk 0:09:08.2]} 20... Be6 {[%clk 0:07:04.7]} 21.
exf5 {[%clk 0:09:03]} 21... Bxf5 {[%clk 0:07:06.6]} 22. Rad1 {[%clk 0:09:01]}
22... h6 {[%clk 0:06:26.5]} 23. b5 {[%clk 0:08:32.8]} 23... axb5 {[%clk
0:06:18.8]} 24. Qb3+ {[%clk 0:08:32.5]} 24... Kh7 {[%clk 0:05:32.1]} 25. Qxb5
{[%clk 0:08:31.5]} 25... Bd7 {[%clk 0:04:51.1]} 26. Qb3 {[%clk 0:08:26.1]} 26...
b6 {[%clk 0:03:45.3]} 27. Qc2 {[%clk 0:08:13.6]} 27... Qd6 {[%clk 0:03:32.3]}
28. Rc1 {[%clk 0:08:02.1]} 28... Ne7 {[%clk 0:03:32.8]} 29. Qxc7 {[%clk
0:07:41.8]} 29... Qxd3 {[%clk 0:03:32.7]} 30. Nc3 {[%clk 0:07:42.3]} 30... Nf5
{[%clk 0:03:29.6]} 31. Ne4 {[%clk 0:07:33.5]} 31... Nd4 {[%clk 0:03:02.7]} 32.
Bxd4 {[%clk 0:07:25.7]} 32... exd4 {[%clk 0:03:03]} 33. Qxb6 {[%clk 0:07:23.1]}
33... Qxa3 {[%clk 0:03:03.6]} 34. Nc5 {[%clk 0:07:13.1]} 34... Bf5 {[%clk
0:02:57.2]} 35. Ne6 {[%clk 0:06:48.1]} 35... Bxe6 {[%clk 0:02:52.5]} 36. Qxe6
{[%clk 0:06:48.9]} 36... Qd6 {[%clk 0:02:53.4]} 37. Qxd6 {[%clk 0:06:16.4]}
37... Rxd6 {[%clk 0:02:55.3]} 38. Rc7 {[%clk 0:06:11.8]} 38... d3 {[%clk
0:02:46.3]} 39. f4 {[%clk 0:06:10.4]} 39... d2 {[%clk 0:02:46.6]} 40. Rd1 {[%clk
0:06:11.3]} 40... Re8 {[%clk 0:02:39.6]} 41. Bf3 {[%clk 0:06:12]} 41... Re1
{[%clk 0:02:37.5]} 42. Rc2 {[%clk 0:05:58.1]} 42... Rd3 {[%clk 0:02:26]} 43. Bg4
{[%clk 0:05:39.7]} 43... h5 {[%clk 0:02:24.7]} 44. Bxh5 {[%clk 0:05:40.1]} 44...
gxh5 {[%clk 0:02:24.3]} 45. Rdxd2 {[%clk 0:05:40.4]} 45... Rxd2+ {[%clk
0:02:24.7]} 46. Rxd2 {[%clk 0:05:41.3]} 46... Re3 {[%clk 0:02:25.2]} 47. Kg2
{[%clk 0:05:41.1]} 47... Kg6 {[%clk 0:02:24.8]} 48. Rd5 {[%clk 0:05:41.5]} 48...
Bf6 {[%clk 0:02:24]} 49. Rb5 {[%clk 0:05:37.1]} 49... h4 {[%clk 0:02:21.7]} 50.
gxh4 {[%clk 0:05:14.3]} 50... Bxh4 {[%clk 0:02:23.6]} 51. Rd5 {[%clk 0:04:52.7]}
51... Rg3+ {[%clk 0:02:20.1]} 52. Kh2 {[%clk 0:04:53.9]} 52... Rf3 {[%clk
0:02:21.2]} 53. Rd4 {[%clk 0:04:53.6]} 53... Rf2+ {[%clk 0:02:21.8]} 54. Kg1
{[%clk 0:04:54.4]} 54... Ra2 {[%clk 0:02:18.2]} 55. Rd5 {[%clk 0:04:53.6]} 55...
Bg3 {[%clk 0:02:12.6]} 56. Rg5+ {[%clk 0:04:54.2]} 56... Kf6 {[%clk 0:02:13.2]}
57. Rxg3 {[%clk 0:04:55.4]} 57... Kf5 {[%clk 0:02:14.6]} 58. Rg4 {[%clk
0:04:54.5]} 58... Rb2 {[%clk 0:02:14.3]} 59. Kf1 {[%clk 0:04:35.1]} 59... Ra2
{[%clk 0:02:14.7]} 60. Kg1 {[%clk 0:04:32.1]} 60... Rb2 {[%clk 0:02:15.5]} 61.
Rg2 {[%clk 0:04:32.9]} 61... Rxg2+ {[%clk 0:02:15.8]} 62. Kxg2 {[%clk
0:04:34.2]} 62... Kxf4 {[%clk 0:02:17.7]} 63. h4 {[%clk 0:04:35.3]} 63... Kf5
{[%clk 0:02:19.1]} 64. h5 {[%clk 0:04:36.8]} 64... Kg5 {[%clk 0:02:20.4]} 65. h6
{[%clk 0:04:38.2]} 65... Kxh6 {[%clk 0:02:21.7]} 1/2-1/2

[Event "GrandPrix_29.05"]
[Site "Chess.com"]
[Date "2020.05.29"]
[Round "1"]
[White "kosmeg"]
[Black "tornikesanikidze"]
[Result "0-1"]
[WhiteElo "2160"]
[BlackElo "1847"]
[TimeControl "600+2"]
[EndTime "9:19:01 PDT"]
[Termination "tornikesanikidze won on time"]

1. d4 {[%clk 0:10:00.5]} 1... d5 {[%clk 0:10:00.2]} 2. c4 {[%clk 0:10:00.5]}
2... e6 {[%clk 0:10:00.9]} 3. Nf3 {[%clk 0:10:01.2]} 3... Nf6 {[%clk 0:10:01.6]}
4. g3 {[%clk 0:10:01.9]} 4... dxc4 {[%clk 0:10:02]} 5. Bg2 {[%clk 0:10:02.1]}
5... Nc6 {[%clk 0:10:02.9]} 6. Qa4 {[%clk 0:10:00]} 6... Bb4+ {[%clk 0:10:02.8]}
7. Bd2 {[%clk 0:09:59.9]} 7... Nd5 {[%clk 0:09:59.1]} 8. Bxb4 {[%clk 0:09:38.5]}
8... Nxb4 {[%clk 0:09:59.9]} 9. O-O {[%clk 0:09:39.9]} 9... Rb8 {[%clk
0:09:59.5]} 10. Na3 {[%clk 0:09:13.9]} 10... O-O {[%clk 0:09:58.3]} 11. Qb5
{[%clk 0:09:04.3]} 11... b6 {[%clk 0:09:59.4]} 12. Qxc4 {[%clk 0:09:04.6]} 12...
Ba6 {[%clk 0:10:00.2]} 13. Nb5 {[%clk 0:09:05.8]} 13... Qd5 {[%clk 0:10:00.9]}
14. Qxd5 {[%clk 0:08:57.6]} 14... Nxd5 {[%clk 0:10:02.8]} 15. a4 {[%clk
0:08:54.5]} 15... Na5 {[%clk 0:10:02.5]} 16. Nd2 {[%clk 0:07:08.5]} 16... c6
{[%clk 0:09:12.7]} 17. Bxd5 {[%clk 0:06:08.3]} 17... exd5 {[%clk 0:09:08.1]} 18.
Nc3 {[%clk 0:06:08.3]} 18... Rfe8 {[%clk 0:09:05.3]} 19. b4 {[%clk 0:04:33.3]}
19... Nc4 {[%clk 0:09:05.5]} 20. Nxc4 {[%clk 0:04:34.4]} 20... Bxc4 {[%clk
0:09:07.4]} 21. Rfe1 {[%clk 0:04:35.6]} 21... a5 {[%clk 0:09:02.9]} 22. bxa5
{[%clk 0:03:51.1]} 22... bxa5 {[%clk 0:09:03.4]} 23. e4 {[%clk 0:03:49.5]} 23...
f6 {[%clk 0:08:55.8]} 24. exd5 {[%clk 0:03:28.2]} 24... Rxe1+ {[%clk 0:08:51.7]}
25. Rxe1 {[%clk 0:03:30.1]} 25... cxd5 {[%clk 0:08:53.1]} 26. Rb1 {[%clk
0:02:55.5]} 26... Rb4 {[%clk 0:08:53.8]} 27. f3 {[%clk 0:02:43.9]} 27... Bd3
{[%clk 0:08:38.3]} 28. Rd1 {[%clk 0:02:11.1]} 28... Bc2 {[%clk 0:08:20.6]} 29.
Rd2 {[%clk 0:01:58.1]} 29... Bb3 {[%clk 0:08:21.3]} 30. Kf2 {[%clk 0:01:55.6]}
30... Kf7 {[%clk 0:08:21.9]} 31. Ke3 {[%clk 0:01:56.3]} 31... Ke6 {[%clk
0:08:23]} 32. Rb2 {[%clk 0:01:55.4]} 32... Bc4 {[%clk 0:08:15.6]} 33. Rb1 {[%clk
0:01:42.1]} 33... g5 {[%clk 0:08:10.9]} 34. Kd2 {[%clk 0:01:42.4]} 34... Kd6
{[%clk 0:08:06.6]} 35. Kc2 {[%clk 0:01:18]} 35... Kc6 {[%clk 0:08:02.3]} 36. Re1
{[%clk 0:01:15.6]} 36... Bb3+ {[%clk 0:08:01.2]} 37. Kd3 {[%clk 0:01:11.9]}
37... Kd7 {[%clk 0:08:02.2]} 38. Rb1 {[%clk 0:01:09.5]} 38... h5 {[%clk
0:07:54.8]} 39. Kd2 {[%clk 0:01:06.8]} 39... h4 {[%clk 0:07:49.5]} 40. Kd3
{[%clk 0:01:00.8]} 40... Ke6 {[%clk 0:07:31.9]} 41. Re1+ {[%clk 0:00:56.5]}
41... Kf5 {[%clk 0:07:32.3]} 42. Re7 {[%clk 0:00:30.7]} 42... Bc4+ {[%clk
0:07:24.8]} 43. Kc2 {[%clk 0:00:28.3]} 43... Bb3+ {[%clk 0:07:25.8]} 44. Kd3
{[%clk 0:00:29.2]} 44... Bxa4 {[%clk 0:06:49.7]} 45. Nxd5 {[%clk 0:00:24.6]}
45... Bb5+ {[%clk 0:06:50.6]} 46. Kc3 {[%clk 0:00:10.2]} 46... Rc4+ {[%clk
0:06:51.6]} 47. Kb3 {[%clk 0:00:10.8]} 47... Rxd4 {[%clk 0:06:45]} 48. Ne3+
{[%clk 0:00:11.6]} 48... Kg6 {[%clk 0:06:45.7]} 49. g4 {[%clk 0:00:13]} 49...
Rd7 {[%clk 0:05:55.4]} 50. Rxd7 {[%clk 0:00:05]} 50... Bxd7 {[%clk 0:05:55.8]}
51. Kc4 {[%clk 0:00:05.3]} 51... Bc6 {[%clk 0:05:55.7]} 52. Nf5 {[%clk
0:00:02.3]} 52... Bxf3 {[%clk 0:05:53.6]} 0-1

[Event "GrandPrix_29.05"]
[Site "Chess.com"]
[Date "2020.05.29"]
[Round "1"]
[White "MasterSonnevanck2"]
[Black "Herracek"]
[Result "0-1"]
[WhiteElo "1994"]
[BlackElo "2456"]
[TimeControl "600+2"]
[EndTime "9:19:05 PDT"]
[Termination "Herracek won by resignation"]

1. d4 {[%clk 0:09:41.1]} 1... Nf6 {[%clk 0:10:00.4]} 2. c4 {[%clk 0:09:41.8]}
2... e5 {[%clk 0:10:00.2]} 3. dxe5 {[%clk 0:09:41.5]} 3... Ng4 {[%clk
0:10:00.9]} 4. Bf4 {[%clk 0:09:41.5]} 4... g5 {[%clk 0:10:00.2]} 5. Bg3 {[%clk
0:09:40.1]} 5... Bg7 {[%clk 0:09:53.9]} 6. Nf3 {[%clk 0:09:40.5]} 6... Nc6
{[%clk 0:09:54.5]} 7. h4 {[%clk 0:09:38.6]} 7... Ngxe5 {[%clk 0:09:55.2]} 8.
Nxe5 {[%clk 0:09:35.6]} 8... Nxe5 {[%clk 0:09:57.1]} 9. hxg5 {[%clk 0:09:34.2]}
9... Nxc4 {[%clk 0:09:50.2]} 10. Nc3 {[%clk 0:09:32.1]} 10... c6 {[%clk
0:09:49.2]} 11. Qb3 {[%clk 0:09:14.4]} 11... d5 {[%clk 0:09:24.5]} 12. e3 {[%clk
0:09:14]} 12... Qxg5 {[%clk 0:09:05.1]} 13. Bxc4 {[%clk 0:09:05.4]} 13... dxc4
{[%clk 0:09:07]} 14. Qxc4 {[%clk 0:09:05.4]} 14... Be6 {[%clk 0:09:07.1]} 15.
Qd3 {[%clk 0:08:09.2]} 15... Rd8 {[%clk 0:08:14.1]} 16. Qe4 {[%clk 0:07:46.2]}
16... Qa5 {[%clk 0:08:05]} 17. O-O {[%clk 0:07:16.8]} 17... Rd2 {[%clk
0:07:00.9]} 18. Qf4 {[%clk 0:05:53.4]} 18... O-O {[%clk 0:05:55.5]} 19. Ne4
{[%clk 0:05:41.4]} 19... Rxb2 {[%clk 0:05:55.6]} 20. Nf6+ {[%clk 0:05:34.7]}
20... Kh8 {[%clk 0:05:56.5]} 21. Qh4 {[%clk 0:04:41.5]} 21... Bf5 {[%clk
0:04:51.6]} 22. Nh5 {[%clk 0:04:40.7]} 22... Rb4 {[%clk 0:04:43.8]} 23. Bf4
{[%clk 0:04:08]} 23... Bb2 {[%clk 0:04:11.3]} 24. Rab1 {[%clk 0:03:59.9]} 24...
Bxb1 {[%clk 0:04:11.5]} 25. Rxb1 {[%clk 0:03:55.7]} 25... Qf5 {[%clk 0:04:03.9]}
26. Rd1 {[%clk 0:03:18.8]} 26... Rb5 {[%clk 0:03:52.7]} 27. Qe7 {[%clk
0:03:03.3]} 27... Rg8 {[%clk 0:03:30.7]} 28. Ng3 {[%clk 0:02:11.9]} 28... Qe6
{[%clk 0:03:17.7]} 29. Qc7 {[%clk 0:01:53.4]} 29... Bf6 {[%clk 0:02:56.6]} 30.
Rd7 {[%clk 0:01:43.3]} 30... Rb1+ {[%clk 0:02:56.6]} 31. Kh2 {[%clk 0:01:42.3]}
31... Qg4 {[%clk 0:02:57.9]} 0-1

[Event "GrandPrix_29.05"]
[Site "Chess.com"]
[Date "2020.05.29"]
[Round "1"]
[White "Grandelicious"]
[Black "Paulz64"]
[Result "1-0"]
[WhiteElo "2703"]
[BlackElo "2158"]
[TimeControl "600+2"]
[EndTime "9:19:08 PDT"]
[Termination "Grandelicious won by resignation"]

1. Nf3 {[%clk 0:09:57.4]} 1... Nf6 {[%clk 0:09:59.9]} 2. g3 {[%clk 0:09:58.2]}
2... d5 {[%clk 0:09:59.9]} 3. Bg2 {[%clk 0:09:59]} 3... c6 {[%clk 0:10:00.8]} 4.
O-O {[%clk 0:09:58.8]} 4... Bg4 {[%clk 0:10:01.2]} 5. h3 {[%clk 0:09:57.2]} 5...
Bh5 {[%clk 0:10:01.6]} 6. c4 {[%clk 0:09:58.2]} 6... e6 {[%clk 0:10:02]} 7. cxd5
{[%clk 0:09:58.8]} 7... exd5 {[%clk 0:10:03]} 8. d4 {[%clk 0:09:59.7]} 8... Bxf3
{[%clk 0:09:51]} 9. exf3 {[%clk 0:09:58.9]} 9... Be7 {[%clk 0:09:51.5]} 10. Nc3
{[%clk 0:09:52.3]} 10... O-O {[%clk 0:09:52]} 11. h4 {[%clk 0:09:48.6]} 11...
Na6 {[%clk 0:09:45.2]} 12. Re1 {[%clk 0:09:41.8]} 12... Nc7 {[%clk 0:09:45.5]}
13. Bh3 {[%clk 0:09:39.5]} 13... Bd6 {[%clk 0:09:37.4]} 14. Qd3 {[%clk
0:08:54.4]} 14... Re8 {[%clk 0:09:30.1]} 15. Bd2 {[%clk 0:08:45.6]} 15... Ne6
{[%clk 0:09:10.5]} 16. Ne2 {[%clk 0:08:29.6]} 16... a5 {[%clk 0:08:36]} 17. Kg2
{[%clk 0:08:14.5]} 17... Qb6 {[%clk 0:08:14.6]} 18. Bc3 {[%clk 0:08:11.4]} 18...
Re7 {[%clk 0:07:59.1]} 19. Qd2 {[%clk 0:06:43]} 19... Bb4 {[%clk 0:07:28.2]} 20.
Nc1 {[%clk 0:05:43.4]} 20... Rae8 {[%clk 0:06:03.6]} 21. Nd3 {[%clk 0:05:31.5]}
21... Bxc3 {[%clk 0:05:10.2]} 22. bxc3 {[%clk 0:05:33.4]} 22... Qc7 {[%clk
0:04:59.5]} 23. a4 {[%clk 0:05:15.8]} 23... Nd7 {[%clk 0:04:51]} 24. Qb2 {[%clk
0:04:49.6]} 24... Ndf8 {[%clk 0:04:44.9]} 25. Rab1 {[%clk 0:04:41.7]} 25... Ng6
{[%clk 0:04:29]} 26. Bxe6 {[%clk 0:03:38.4]} 26... fxe6 {[%clk 0:04:22.6]} 27.
Nc5 {[%clk 0:03:25]} 27... e5 {[%clk 0:04:17.5]} 28. Qxb7 {[%clk 0:03:20.9]}
28... Qd6 {[%clk 0:04:04.2]} 29. Qb6 {[%clk 0:03:04.9]} 29... Qf6 {[%clk
0:03:48.9]} 30. dxe5 {[%clk 0:02:13]} 30... Nxe5 {[%clk 0:03:46.8]} 31. f4
{[%clk 0:02:14.2]} 31... Nc4 {[%clk 0:03:25.7]} 32. Rxe7 {[%clk 0:02:10.3]}
32... Rxe7 {[%clk 0:03:26.6]} 33. Qd8+ {[%clk 0:02:07]} 33... Kf7 {[%clk
0:03:24.2]} 34. Rb8 {[%clk 0:01:36.4]} 34... h5 {[%clk 0:03:13.2]} 35. Qh8
{[%clk 0:01:21.3]} 35... Qf5 {[%clk 0:03:08.7]} 36. Rf8+ {[%clk 0:01:21.4]} 1-0

[Event "GrandPrix_29.05"]
[Site "Chess.com"]
[Date "2020.05.29"]
[Round "1"]
[White "maciek_92"]
[Black "CHESSMASTER759"]
[Result "1-0"]
[WhiteElo "2541"]
[BlackElo "2047"]
[TimeControl "600+2"]
[EndTime "9:19:12 PDT"]
[Termination "maciek_92 won by resignation"]

1. e4 {[%clk 0:09:56.8]} 1... d6 {[%clk 0:10:00.3]} 2. d4 {[%clk 0:09:57.5]}
2... Nf6 {[%clk 0:09:50.2]} 3. Nc3 {[%clk 0:09:58.8]} 3... e5 {[%clk 0:09:50.6]}
4. Nf3 {[%clk 0:10:00.3]} 4... Nbd7 {[%clk 0:09:51]} 5. Bc4 {[%clk 0:10:01.6]}
5... Be7 {[%clk 0:09:52]} 6. O-O {[%clk 0:10:02.5]} 6... O-O {[%clk 0:09:49.6]}
7. Re1 {[%clk 0:10:03.3]} 7... c6 {[%clk 0:09:23.3]} 8. a4 {[%clk 0:10:03.6]}
8... a5 {[%clk 0:09:24.1]} 9. h3 {[%clk 0:10:02]} 9... Nb6 {[%clk 0:09:23.3]}
10. Bf1 {[%clk 0:09:58]} 10... exd4 {[%clk 0:09:23.7]} 11. Nxd4 {[%clk
0:09:58.2]} 11... d5 {[%clk 0:09:25.3]} 12. e5 {[%clk 0:09:52.6]} 12... Ne8
{[%clk 0:08:29.8]} 13. Qf3 {[%clk 0:09:35.5]} 13... g6 {[%clk 0:08:29.3]} 14.
Bh6 {[%clk 0:09:35.3]} 14... Ng7 {[%clk 0:08:28.6]} 15. Rad1 {[%clk 0:09:10.5]}
15... Bg5 {[%clk 0:08:25.3]} 16. Bxg5 {[%clk 0:09:09.2]} 16... Qxg5 {[%clk
0:08:27.2]} 17. g3 {[%clk 0:08:52]} 17... Nd7 {[%clk 0:08:02.2]} 18. h4 {[%clk
0:08:48.3]} 18... Qd8 {[%clk 0:07:49.9]} 19. Qf4 {[%clk 0:08:18]} 19... Nc5
{[%clk 0:06:54.2]} 20. Nf3 {[%clk 0:07:51]} 20... f6 {[%clk 0:06:38]} 21. Qe3
{[%clk 0:06:30.5]} 21... Nce6 {[%clk 0:06:00.2]} 22. Ne4 {[%clk 0:06:13.4]}
22... f5 {[%clk 0:05:30.8]} 23. Nf6+ {[%clk 0:06:11.2]} 23... Kh8 {[%clk
0:05:18.5]} 24. Qh6 {[%clk 0:05:27.7]} 24... Rxf6 {[%clk 0:05:12.3]} 25. exf6
{[%clk 0:05:29.6]} 25... Qxf6 {[%clk 0:05:13.7]} 26. Ng5 {[%clk 0:05:30.4]}
26... Nxg5 {[%clk 0:05:11.8]} 27. hxg5 {[%clk 0:05:32.3]} 27... Qf7 {[%clk
0:05:10.4]} 28. f4 {[%clk 0:05:12.8]} 28... Bd7 {[%clk 0:05:09.8]} 29. Re5
{[%clk 0:05:11.9]} 29... Ne6 {[%clk 0:05:08.6]} 30. Rde1 {[%clk 0:05:06.8]}
30... Re8 {[%clk 0:05:08.8]} 31. b3 {[%clk 0:04:57.5]} 31... b6 {[%clk
0:04:54.6]} 32. Qh2 {[%clk 0:04:51.5]} 32... Nc5 {[%clk 0:04:52.9]} 33. Qd2
{[%clk 0:04:37.1]} 33... Be6 {[%clk 0:04:41.6]} 34. Qd4 {[%clk 0:04:34.3]} 34...
Kg8 {[%clk 0:04:41.5]} 35. Bd3 {[%clk 0:04:23]} 35... Nd7 {[%clk 0:04:30.9]} 36.
R5e2 {[%clk 0:04:15.3]} 36... Nc5 {[%clk 0:04:25.9]} 37. b4 {[%clk 0:04:15.8]}
37... axb4 {[%clk 0:04:13.6]} 38. Qxb4 {[%clk 0:04:17.7]} 38... Ne4 {[%clk
0:04:00.4]} 39. Qxb6 {[%clk 0:04:10.1]} 39... c5 {[%clk 0:04:00.9]} 40. Bxe4
{[%clk 0:04:06.8]} 40... fxe4 {[%clk 0:04:00.3]} 41. a5 {[%clk 0:04:04.7]} 41...
Bg4 {[%clk 0:03:44.1]} 42. Re3 {[%clk 0:04:05.2]} 42... Bf3 {[%clk 0:03:32.8]}
43. Qxc5 {[%clk 0:04:02]} 43... Rd8 {[%clk 0:03:26]} 44. c3 {[%clk 0:04:00.4]}
44... Qd7 {[%clk 0:03:26.1]} 45. Kf2 {[%clk 0:03:15.5]} 45... Qh3 {[%clk
0:03:21]} 46. Rxf3 {[%clk 0:03:16.7]} 46... Qh2+ {[%clk 0:03:21.5]} 47. Ke3
{[%clk 0:03:17.2]} 47... exf3 {[%clk 0:03:20.8]} 48. Kxf3 {[%clk 0:03:17.2]}
48... d4 {[%clk 0:02:56.8]} 49. Qe7 {[%clk 0:02:52]} 49... Rf8 {[%clk
0:02:51.3]} 50. Qe6+ {[%clk 0:02:52.5]} 50... Kh8 {[%clk 0:02:51.9]} 51. Qe5+
{[%clk 0:02:53.4]} 51... Kg8 {[%clk 0:02:53.2]} 52. Qd5+ {[%clk 0:02:54.7]}
52... Rf7 {[%clk 0:02:51.1]} 53. Re8+ {[%clk 0:02:54.6]} 1-0

[Event "GrandPrix_29.05"]
[Site "Chess.com"]
[Date "2020.05.29"]
[Round "1"]
[White "haddinibilbaoo"]
[Black "jncool68"]
[Result "1-0"]
[WhiteElo "2142"]
[BlackElo "2056"]
[TimeControl "600+2"]
[EndTime "9:19:13 PDT"]
[Termination "haddinibilbaoo won by resignation"]

1. d4 {[%clk 0:09:58]} 1... Nf6 {[%clk 0:09:59.1]} 2. Nf3 {[%clk 0:09:58.5]}
2... e6 {[%clk 0:09:59.6]} 3. Bf4 {[%clk 0:09:59.1]} 3... d5 {[%clk 0:09:59.7]}
4. e3 {[%clk 0:10:00]} 4... Bd6 {[%clk 0:10:00.1]} 5. Nbd2 {[%clk 0:09:54.3]}
5... O-O {[%clk 0:09:59.7]} 6. Bd3 {[%clk 0:09:49.2]} 6... c5 {[%clk 0:10:00]}
7. c3 {[%clk 0:09:49.9]} 7... Bxf4 {[%clk 0:09:54.8]} 8. exf4 {[%clk 0:09:50.9]}
8... cxd4 {[%clk 0:09:55.9]} 9. Nxd4 {[%clk 0:09:30.4]} 9... Nc6 {[%clk
0:09:31.1]} 10. N2f3 {[%clk 0:09:12.7]} 10... Qc7 {[%clk 0:09:24.3]} 11. g3
{[%clk 0:09:10.2]} 11... Ne4 {[%clk 0:08:59.5]} 12. O-O {[%clk 0:08:52.7]} 12...
f5 {[%clk 0:08:54.9]} 13. Rc1 {[%clk 0:08:05.1]} 13... Qb6 {[%clk 0:08:52.3]}
14. Qb3 {[%clk 0:08:01.2]} 14... Bd7 {[%clk 0:08:11.4]} 15. Qxb6 {[%clk
0:07:24.3]} 15... axb6 {[%clk 0:08:11.7]} 16. a3 {[%clk 0:07:25.7]} 16... Nc5
{[%clk 0:08:07.2]} 17. Be2 {[%clk 0:07:03.3]} 17... Rfc8 {[%clk 0:08:01.7]} 18.
c4 {[%clk 0:06:49.4]} 18... Ne7 {[%clk 0:07:45.5]} 19. Ne5 {[%clk 0:06:39.3]}
19... Rd8 {[%clk 0:07:38.7]} 20. cxd5 {[%clk 0:06:21.6]} 20... Nxd5 {[%clk
0:07:38.9]} 21. Bc4 {[%clk 0:06:23.1]} 21... Be8 {[%clk 0:07:20]} 22. Rfd1
{[%clk 0:05:56.7]} 22... Bf7 {[%clk 0:07:14.7]} 23. Nb5 {[%clk 0:05:28.5]} 23...
Rac8 {[%clk 0:06:38]} 24. Bxd5 {[%clk 0:04:45.5]} 24... exd5 {[%clk 0:06:38.5]}
25. b4 {[%clk 0:04:46.2]} 25... Ne4 {[%clk 0:06:34.1]} 26. Rxc8 {[%clk
0:04:15.7]} 26... Rxc8 {[%clk 0:06:34.8]} 27. Nxf7 {[%clk 0:03:09.6]} 27... Kxf7
{[%clk 0:06:34.9]} 28. f3 {[%clk 0:03:11.1]} 28... Nc3 {[%clk 0:06:35.8]} 29.
Nxc3 {[%clk 0:02:20.6]} 29... Rxc3 {[%clk 0:06:36.2]} 30. Rxd5 {[%clk
0:02:22.2]} 30... Ke6 {[%clk 0:06:37.5]} 31. Rb5 {[%clk 0:02:23]} 31... Rc6
{[%clk 0:06:37.7]} 32. a4 {[%clk 0:01:42.4]} 32... g6 {[%clk 0:06:24.3]} 33. Kg2
{[%clk 0:01:34.1]} 33... Kd6 {[%clk 0:06:22.8]} 34. g4 {[%clk 0:01:13.1]} 34...
fxg4 {[%clk 0:05:56.5]} 35. fxg4 {[%clk 0:01:15]} 35... Rc2+ {[%clk 0:05:56.9]}
36. Kg3 {[%clk 0:01:16.4]} 36... Kc6 {[%clk 0:05:58.3]} 37. f5 {[%clk
0:01:02.6]} 37... gxf5 {[%clk 0:05:59]} 38. Rxf5 {[%clk 0:01:04.5]} 38... Ra2
{[%clk 0:05:50.2]} 39. a5 {[%clk 0:00:59.5]} 39... bxa5 {[%clk 0:05:50.4]} 40.
bxa5 {[%clk 0:01:00.8]} 40... Kd6 {[%clk 0:05:43.7]} 41. h4 {[%clk 0:00:58.3]}
41... Ke6 {[%clk 0:05:44.5]} 42. Rb5 {[%clk 0:00:57.3]} 42... h6 {[%clk
0:05:40.3]} 43. h5 {[%clk 0:00:38.5]} 43... Kf6 {[%clk 0:05:12.5]} 44. Rb6+
{[%clk 0:00:28.1]} 44... Kg7 {[%clk 0:05:12]} 45. Rxb7+ {[%clk 0:00:29.3]} 45...
Kg8 {[%clk 0:05:13.1]} 46. Ra7 {[%clk 0:00:29.2]} 46... Ra4 {[%clk 0:05:12.3]}
47. a6 {[%clk 0:00:29.7]} 47... Kh8 {[%clk 0:05:13.5]} 48. Kf3 {[%clk
0:00:29.3]} 48... Kg8 {[%clk 0:05:13.6]} 49. Ke3 {[%clk 0:00:30.3]} 49... Rxg4
{[%clk 0:04:58.9]} 50. Rb7 {[%clk 0:00:30.3]} 1-0